bitfinex/quotes_BTCUSD_20250114
["timestamp","ask_amount","ask_price","bid_price","bid_amount"]
[1736874388401,0.00179193,95799.0,95798.0,0.05877356]
[1736874389880,0.00179193,95799.0,95798.0,0.06077356]
[1736874390311,0.00179193,95799.0,95798.0,0.05877356]
[1736874390432,0.00179193,95799.0,95798.0,0.05977356]
[1736874391199,0.00179193,95799.0,95798.0,0.05877356]
[1736874391397,0.00179193,95799.0,95798.0,0.05277356]
[1736874391726,0.00179193,95799.0,95798.0,0.05977356]
[1736874391949,0.00179193,95799.0,95798.0,0.05277356]
[1736874392117,0.00179193,95799.0,95798.0,0.15700048]
[1736874392420,0.00179193,95799.0,95798.0,0.16100048]
[1736874392784,0.00179193,95799.0,95798.0,0.16000048]
[1736874393173,0.00179193,95799.0,95798.0,0.16200048]
[1736874393574,0.00179193,95799.0,95798.0,0.16000048]
[1736874394127,0.00179193,95799.0,95798.0,0.15700048]
[1736874394332,0.00179193,95799.0,95798.0,0.15900048]
[1736874395002,0.00179193,95799.0,95798.0,0.16300048]
[1736874395757,0.00179193,95799.0,95798.0,0.15900048]
[1736874395936,0.00179193,95799.0,95798.0,0.15700048]
[1736874396130,0.00179193,95799.0,95798.0,0.15900048]
[1736874396964,0.00179193,95799.0,95798.0,0.16400048]
[1736874397324,0.20872,95822.0,95798.0,0.16400048]
[1736874397325,0.09790963,95837.0,95799.0,0.0483]
[1736874397611,0.00179466,95840.0,95799.0,0.0483]
[1736874397612,0.00179466,95840.0,95829.0,0.076]
[1736874397757,0.00179466,95840.0,95839.0,0.358683]
[1736874397964,0.00179466,95840.0,95839.0,0.46290992]
[1736874398168,0.00179466,95840.0,95839.0,0.51504992]
[1736874398849,0.00179466,95840.0,95839.0,0.63804992]
[1736874399001,0.00179319,95845.0,95844.0,0.46076237]
[1736874399002,8.5e-07,95845.0,95844.0,0.46076237]
[1736874399202,0.00179466,95870.0,95854.0,0.46074037]
[1736874399361,0.00179466,95870.0,95854.0,0.56496729]
[1736874399362,0.00229229,95855.0,95854.0,0.56496729]
[1736874399578,2.9e-07,95855.0,95854.0,2.63744329]
[1736874399780,4.1e-07,95861.0,95860.0,0.31072737]
[1736874399980,0.00040137,95870.0,95869.0,0.25209037]
[1736874400243,0.00179193,95895.0,95874.0,0.25209037]
[1736874400438,0.00179193,95895.0,95874.0,0.37931729]
[1736874400659,0.0019442,95875.0,95874.0,0.63598529]
[1736874401285,0.00179193,95895.0,95894.0,0.358563]
[1736874401492,0.00179193,95895.0,95894.0,0.51492992]
[1736874402305,0.0974687,95915.0,95895.0,0.15]
[1736874402621,0.00014945,95909.0,95908.0,0.208533]
[1736874403158,0.00932477,95909.0,95908.0,0.260673]
[1736874403844,0.00014945,95909.0,95908.0,0.260673]
[1736874404081,0.00933014,95909.0,95908.0,0.260673]
[1736874404257,0.00933014,95909.0,95908.0,0.05314]
[1736874404412,0.00933014,95909.0,95908.0,0.06878279]
[1736874404834,0.00014945,95909.0,95908.0,0.06878279]
[1736874405034,0.05211815,95916.0,95908.0,0.06878279]
[1736874405264,0.05211815,95914.0,95908.0,0.05814]
[1736874405662,0.00918701,95913.0,95908.0,0.05814]
[1736874405842,0.00918701,95913.0,95908.0,0.05214]
[1736874406269,0.00918701,95913.0,95909.0,0.208531]
[1736874406468,0.05211815,95914.0,95909.0,0.260671]
[1736874406668,0.05211815,95914.0,95909.0,0.05214]
[1736874407274,0.001,95913.0,95909.0,0.05214]
[1736874408087,0.001,95913.0,95910.0,0.31275492]
[1736874408287,0.001,95913.0,95912.0,0.358524]
[1736874408628,0.05211815,95932.0,95913.0,0.15]
[1736874408833,0.05211815,95932.0,95916.0,0.358515]
[1736874409035,0.05211815,95932.0,95916.0,0.46274192]
[1736874409246,0.05211815,95932.0,95916.0,0.51488192]
[1736874410029,0.05211815,95932.0,95916.0,0.65893702]
[1736874410590,0.05211815,95932.0,95916.0,0.66293702]
[1736874410804,0.05211815,95932.0,95916.0,0.64188192]
[1736874411820,0.05211815,95932.0,95916.0,0.63788192]
[1736874412060,0.05211815,95932.0,95916.0,0.64688192]
[1736874412257,0.05211815,95932.0,95916.0,0.64988192]
[1736874412476,0.05211815,95932.0,95916.0,0.52688192]
[1736874412674,0.05211815,95932.0,95916.0,0.52388192]
[1736874413066,0.05211815,95932.0,95916.0,0.52788192]
[1736874413285,0.05211815,95932.0,95916.0,0.53855013]
[1736874415526,0.00179067,95936.0,95916.0,0.66155013]
[1736874416107,0.05211815,95932.0,95916.0,0.53855013]
[1736874418052,0.05211815,95932.0,95916.0,0.53455013]
[1736874418213,0.05211815,95932.0,95916.0,0.53855013]
[1736874418824,0.05211815,95932.0,95916.0,0.53455013]
[1736874419027,0.05211815,95932.0,95916.0,0.53855013]
[1736874419423,0.05211815,95934.0,95916.0,0.53855013]
[1736874419622,0.05211815,95932.0,95916.0,0.53855013]
[1736874420226,0.00179067,95936.0,95916.0,0.53855013]
[1736874420430,0.00179067,95936.0,95916.0,0.66155013]
[1736874420634,0.00179067,95936.0,95916.0,0.78703198]
[1736874423068,0.00179067,95936.0,95935.0,0.208474]
[1736874423264,0.00179067,95936.0,95935.0,0.36484092]
[1736874424091,0.00179067,95936.0,95935.0,0.63784092]
[1736874424332,0.0004,95949.0,95948.0,0.358446]
[1736874424465,0.00054945,95949.0,95948.0,0.58567292]
[1736874424661,4.5e-07,95949.0,95948.0,1.26442292]
[1736874425011,0.0004,95989.0,95961.0,0.458418]
[1736874425183,0.00056798,95962.0,95961.0,0.63778492]
[1736874426381,0.00056798,95962.0,95961.0,0.64833518]
[1736874426582,0.00056798,95962.0,95961.0,0.65605347]
[1736874427224,0.00056798,95962.0,95961.0,0.65905347]
[1736874427387,0.00056798,95962.0,95961.0,0.66805347]
[1736874427750,0.00056798,95962.0,95961.0,0.79639047]
[1736874427959,0.00056798,95962.0,95961.0,0.80539047]
[1736874428123,0.0004,95989.0,95970.0,0.1]
[1736874428304,0.0004,95989.0,95988.0,0.208359]
[1736874428504,0.00054933,95989.0,95988.0,0.31258592]
[1736874428720,0.00054933,95989.0,95988.0,0.36472592]
[1736874429564,0.00045723,95989.0,95988.0,0.36472592]
[1736874429978,0.00045723,95989.0,95988.0,0.64544421]
[1736874430153,0.00045723,95989.0,95988.0,0.77204421]
[1736874430697,0.00045723,95989.0,95988.0,0.78436016]
[1736874431025,0.00045723,95989.0,95988.0,0.79336016]
[1736874431228,0.00045723,95989.0,95988.0,0.79136016]
[1736874431434,0.00045723,95989.0,95988.0,0.79536016]
[1736874432068,0.00045723,95989.0,95988.0,0.54576016]
[1736874432938,0.00045723,95989.0,95988.0,0.64576016]
[1736874433083,0.00045723,95989.0,95988.0,0.54576016]
[1736874433465,0.00045723,95989.0,95988.0,0.39576016]
[1736874433677,0.00045723,95989.0,95988.0,0.38544421]
[1736874433878,0.00045723,95989.0,95988.0,0.39605708]
[1736874434085,0.00045723,95989.0,95988.0,0.54605708]
[1736874434310,0.00045723,95989.0,95988.0,0.66133879]
[1736874434535,0.00045723,95989.0,95988.0,0.65733879]
[1736874434739,0.00045723,95989.0,95988.0,0.69822064]
[1736874434942,0.00045723,95989.0,95988.0,1.00479264]
[1736874435128,0.0008529,96005.0,96004.0,0.1]
[1736874435334,0.0751,96031.0,96012.0,0.1]
[1736874435540,0.208192,96066.0,96012.0,0.1]
[1736874435541,0.0751,96065.0,96027.0,0.273]
[1736874435739,0.05211815,96053.0,96028.0,0.81702892]
[1736874435942,0.00054931,96029.0,96028.0,0.97543292]
[1736874436280,3.1e-07,96029.0,96028.0,1.03364329]
[1736874436454,3.1e-07,96029.0,96028.0,0.62710929]
[1736874436658,3.1e-07,96029.0,96028.0,0.70224929]
[1736874437006,3.1e-07,96029.0,96028.0,0.72232345]
[1736874437629,3.1e-07,96029.0,96028.0,0.74304986]
[1736874438162,3.1e-07,96029.0,96028.0,0.7307006]
[1736874438493,0.00200031,96029.0,96028.0,0.7317006]
[1736874438696,3.1e-07,96029.0,96028.0,0.7307006]
[1736874439039,3.1e-07,96029.0,96028.0,0.68281875]
[1736874439377,0.00196031,96029.0,96028.0,0.7317006]
[1736874439701,0.00196031,96029.0,96028.0,1.1187436]
[1736874439905,4e-05,96029.0,96028.0,1.0805116]
[1736874440226,0.00076632,96058.0,96057.0,0.208209]
[1736874440406,0.00126381,96058.0,96057.0,0.36457592]
[1736874441593,0.00126381,96058.0,96057.0,0.36657592]
[1736874442005,0.00126381,96058.0,96057.0,0.37557592]
[1736874443304,0.00126381,96058.0,96057.0,0.38585906]
[1736874443514,0.00126381,96058.0,96057.0,0.06314]
[1736874443766,0.00970413,96058.0,96057.0,0.06314]
[1736874443976,0.00126381,96058.0,96057.0,0.06314]
[1736874444175,0.00970413,96058.0,96057.0,0.06314]
[1736874444684,0.00970413,96058.0,96057.0,0.05214]
[1736874445064,0.00970413,96058.0,96057.0,0.05414]
[1736874446832,0.00970413,96058.0,96057.0,0.05214]
[1736874447051,0.00970413,96058.0,96057.0,0.05514]
[1736874447906,0.00970413,96058.0,96057.0,0.05214]
[1736874448162,0.09250413,96058.0,96057.0,0.05214]
[1736874448397,0.09250413,96058.0,96057.0,0.05514]
[1736874448608,0.09250413,96058.0,96057.0,0.05214]
[1736874449061,0.14592359,96058.0,96057.0,0.05214]
[1736874449218,0.14462228,96058.0,96057.0,0.05214]
[1736874450245,0.14462228,96058.0,96057.0,0.05514]
[1736874450569,0.09250413,96058.0,96057.0,0.05214]
[1736874450771,0.06182228,96058.0,96057.0,0.05514]
[1736874450968,0.05338196,96058.0,96057.0,0.05514]
[1736874451588,0.05338196,96058.0,96057.0,0.05214]
[1736874452234,0.05338196,96058.0,96057.0,0.05714]
[1736874452420,0.06197598,96058.0,96057.0,0.05714]
[1736874453253,0.00126381,96058.0,96057.0,0.265349]
[1736874453428,0.0619612,96058.0,96057.0,0.260349]
[1736874453630,0.05338196,96058.0,96057.0,0.263349]
[1736874454014,0.05338196,96058.0,96057.0,0.260349]
[1736874454223,0.05338196,96058.0,96057.0,0.265349]
[1736874454405,0.05338196,96058.0,96057.0,0.27557087]
[1736874457026,0.00126381,96058.0,96057.0,0.27557087]
[1736874457234,0.05338196,96058.0,96057.0,0.27557087]
[1736874457676,0.00126381,96058.0,96057.0,0.27557087]
[1736874458188,0.00126381,96058.0,96057.0,0.27057087]
[1736874458409,0.00126381,96058.0,96057.0,0.05989662]
[1736874458618,0.00126381,96058.0,96057.0,0.06489662]
[1736874459773,0.00126381,96058.0,96057.0,0.05989662]
[1736874460159,0.00126381,96058.0,96057.0,0.06789662]
[1736874460364,0.00126381,96058.0,96057.0,0.06089662]
[1736874460775,0.00126381,96058.0,96057.0,0.06589662]
[1736874461165,0.00126381,96058.0,96057.0,0.31512354]
[1736874461342,0.00126381,96058.0,96057.0,0.32312354]
[1736874462767,0.00126381,96058.0,96057.0,0.32212354]
[1736874462967,0.00126381,96058.0,96057.0,0.23128319]
[1736874463466,0.00126381,96058.0,96057.0,0.23028319]
[1736874463688,0.00126381,96058.0,96057.0,0.22228319]
[1736874463884,0.00126381,96058.0,96057.0,0.23128319]
[1736874464042,0.00126381,96058.0,96057.0,0.07328319]
[1736874464242,0.00126381,96058.0,96057.0,0.07228319]
[1736874464444,0.00126381,96058.0,96057.0,0.08028319]
[1736874464657,0.00126381,96058.0,96057.0,0.07328319]
[1736874464860,0.00126381,96058.0,96057.0,0.17751011]
[1736874465061,0.0004,96069.0,96068.0,0.208185]
[1736874465268,0.00054919,96069.0,96068.0,0.51455192]
[1736874465668,0.00054919,96069.0,96068.0,2.06993872]
[1736874465898,0.00054919,96069.0,96068.0,0.66993872]
[1736874466818,0.00054919,96069.0,96068.0,0.64530854]
[1736874467174,0.00054919,96069.0,96068.0,0.67769688]
[1736874467419,0.00054919,96069.0,96068.0,0.69069688]
[1736874467618,0.00054919,96069.0,96068.0,0.68169688]
[1736874467913,0.00054919,96069.0,96068.0,0.68170561]
[1736874468118,0.00054919,96069.0,96068.0,0.69070561]
[1736874469141,0.00054919,96069.0,96068.0,0.68670561]
[1736874469345,1.9e-07,96069.0,96068.0,0.73958746]
[1736874469547,7e-05,96092.0,96090.0,0.04788185]
[1736874469750,0.0004,96109.0,96108.0,0.358099]
[1736874469979,0.0004,96109.0,96108.0,0.51446592]
[1736874470186,0.00054916,96109.0,96108.0,0.64689279]
[1736874470405,1.6e-07,96109.0,96108.0,0.71277464]
[1736874470608,1.6e-07,96109.0,96108.0,0.78817464]
[1736874470820,0.0008518,96155.0,96124.0,0.1]
[1736874471054,0.0008518,96155.0,96148.0,0.208012]
[1736874471207,0.00054913,96149.0,96148.0,0.51437892]
[1736874471416,0.00054913,96149.0,96148.0,0.61437892]
[1736874471813,0.00054913,96149.0,96148.0,0.51437892]
[1736874472021,0.00054913,96149.0,96148.0,0.05214]
[1736874472478,0.05758016,96149.0,96148.0,0.05214]
[1736874472681,0.26067728,96149.0,96148.0,0.05214]
[1736874472881,0.26549885,96149.0,96148.0,0.05214]
[1736874473097,0.26549885,96149.0,96148.0,0.05914]
[1736874473447,0.26549885,96149.0,96148.0,0.05214]
[1736874473828,0.26549885,96149.0,96148.0,0.05414]
[1736874474575,0.26549885,96149.0,96148.0,0.05214]
[1736874476502,0.26549885,96149.0,96148.0,0.05414]
[1736874476701,0.26549885,96149.0,96148.0,0.05214]
[1736874477303,0.21016082,96149.0,96148.0,0.05214]
[1736874478286,0.00482157,96149.0,96148.0,0.05214]
[1736874478499,0.208006,96151.0,96148.0,0.05214]
[1736874478860,0.20801,96149.0,96148.0,0.05214]
[1736874479279,0.21300111,96149.0,96148.0,0.05214]
[1736874479899,0.21300111,96149.0,96148.0,0.05314]
[1736874480048,0.21300111,96149.0,96148.0,0.05214]
[1736874480242,0.21430124,96149.0,96148.0,0.05214]
[1736874480444,0.21300111,96149.0,96148.0,0.05314]
[1736874480640,0.31852821,96149.0,96148.0,0.05214]
[1736874480897,0.42362803,96149.0,96148.0,0.05214]
[1736874481098,0.44662803,96149.0,96148.0,0.05314]
[1736874481442,0.57372803,96149.0,96148.0,0.05314]
[1736874481713,0.1,96139.0,96102.0,0.13921159]
[1736874481888,0.11552744,96138.0,96110.0,0.00014913]
[1736874482092,0.1,96135.0,96110.0,0.00014913]
[1736874482294,0.208091,96112.0,96110.0,0.00014913]
[1736874482660,0.00499197,96111.0,96110.0,0.00014913]
[1736874482862,0.11051954,96111.0,96110.0,0.00014913]
[1736874483709,0.11691954,96111.0,96110.0,0.00014913]
[1736874483903,0.11691954,96111.0,96110.0,0.04256913]
[1736874484107,0.33986128,96111.0,96110.0,0.04256913]
[1736874484310,0.33856063,96111.0,96110.0,0.04256913]
[1736874484645,0.33856063,96111.0,96110.0,0.04435959]
[1736874485414,0.33956063,96111.0,96110.0,0.04435959]
[1736874486067,0.33856063,96111.0,96110.0,0.04435959]
[1736874486283,0.33956063,96111.0,96110.0,0.04435959]
[1736874487178,0.34056063,96111.0,96110.0,0.04435959]
[1736874488757,0.34056063,96111.0,96110.0,0.03135957]
[1736874489781,0.11761889,96111.0,96110.0,0.03135957]
[1736874489935,0.2139278,96111.0,96110.0,0.03135957]
[1736874490399,0.2349278,96111.0,96110.0,0.03135957]
[1736874490612,0.48362692,96111.0,96110.0,0.03135957]
[1736874491421,0.48462692,96111.0,96110.0,0.03135957]
[1736874491624,0.48362692,96111.0,96110.0,0.03135957]
[1736874491802,0.48762692,96111.0,96110.0,0.03135957]
[1736874491985,0.51069683,96111.0,96110.0,0.03135957]
[1736874492182,0.50429683,96111.0,96110.0,0.03135957]
[1736874492385,0.48462692,96111.0,96110.0,0.03135957]
[1736874492589,0.48862692,96111.0,96110.0,0.03135957]
[1736874493185,0.48362692,96111.0,96110.0,0.03135957]
[1736874493539,0.48862692,96111.0,96110.0,0.03135957]
[1736874493730,0.49662692,96111.0,96110.0,0.01935955]
[1736874494539,0.48862692,96111.0,96110.0,0.01835955]
[1736874494924,0.49562692,96111.0,96110.0,0.01935955]
[1736874495702,0.47262692,96111.0,96110.0,0.01935955]
[1736874496058,0.49562692,96111.0,96110.0,0.01935955]
[1736874498831,0.49562692,96111.0,96110.0,0.00635953]
[1736874499949,0.208159,96081.0,96069.0,0.21883126]
[1736874500204,0.208181,96070.0,96069.0,0.00014916]
[1736874500349,0.33322602,96070.0,96069.0,0.00014916]
[1736874500550,0.31240792,96070.0,96069.0,0.00014916]
[1736874500755,0.31240792,96070.0,96035.0,0.21901159]
[1736874500756,0.208207,96058.0,96035.0,0.13921159]
[1736874500956,0.31373547,96058.0,96057.0,0.00194133]
[1736874501117,0.31243392,96058.0,96057.0,0.00194133]
[1736874501743,0.31243392,96058.0,96057.0,0.05400921]
[1736874502463,0.49631711,96058.0,96057.0,0.05400921]
[1736874502671,0.208259,96034.0,96013.0,0.2100922]
[1736874503065,0.208259,96034.0,96022.0,0.01050098]
[1736874503305,0.416527,96032.0,96018.0,0.15]
[1736874503680,0.208268,96030.0,96013.0,0.0017892]
[1736874503841,0.2095698,96030.0,96013.0,0.0017892]
[1736874504230,0.2095698,96030.0,96029.0,0.00879277]
[1736874504435,0.2095698,96030.0,96029.0,0.00179277]
[1736874504630,0.2095698,96030.0,96029.0,0.00279277]
[1736874504836,0.21056987,96030.0,96029.0,0.06286065]
[1736874505028,0.209268,96030.0,96029.0,0.06286065]
[1736874505234,0.209268,96030.0,96029.0,0.06186065]
[1736874505457,0.212268,96030.0,96029.0,0.06186065]
[1736874506122,0.208268,96030.0,96029.0,0.05386065]
[1736874506529,0.210268,96030.0,96029.0,0.05386065]
[1736874506739,0.002,96030.0,96029.0,0.05386065]
[1736874507088,0.003,96030.0,96029.0,0.05386065]
[1736874507704,0.001,96030.0,96029.0,0.05386065]
[1736874507882,0.002,96030.0,96029.0,0.05386065]
[1736874508487,0.0064,96040.0,96029.0,0.05386065]
[1736874508720,0.208246,96041.0,96029.0,0.05386065]
[1736874509606,0.001,96030.0,96029.0,0.05586065]
[1736874509807,0.208246,96041.0,96029.0,0.05586065]
[1736874510037,0.208246,96041.0,96029.0,0.05886065]
[1736874510452,0.208246,96041.0,96029.0,0.05586065]
[1736874510669,0.208246,96041.0,96029.0,0.06386065]
[1736874510670,0.001,96030.0,96029.0,0.06386065]
[1736874511095,0.208254,96037.0,96029.0,0.05386065]
[1736874511299,0.208254,96037.0,96029.0,0.05686065]
[1736874511650,0.208247,96040.0,96029.0,0.05686065]
[1736874512054,0.416494,96040.0,96029.0,0.05686065]
[1736874512253,0.208247,96040.0,96029.0,0.05886065]
[1736874512633,0.208237,96044.0,96029.0,0.05586065]
[1736874512840,0.001,96030.0,96029.0,0.06386065]
[1736874513063,0.001,96030.0,96029.0,0.06186065]
[1736874513865,0.208265,96032.0,96029.0,0.05386065]
[1736874514084,0.41653,96032.0,96029.0,0.05386065]
[1736874514211,0.208265,96032.0,96029.0,0.05586065]
[1736874514428,0.208265,96032.0,96029.0,0.05386065]
[1736874514630,0.208255,96036.0,96029.0,0.05386065]
[1736874514837,0.208264,96032.0,96029.0,0.05386065]
[1736874515253,0.208264,96032.0,96029.0,0.05486065]
[1736874515734,0.001,96030.0,96029.0,0.06186065]
[1736874516120,0.208255,96036.0,96029.0,0.05386065]
[1736874516316,0.208255,96036.0,96029.0,0.05586065]
[1736874516730,0.208255,96036.0,96029.0,0.05386065]
[1736874516930,0.0064,96040.0,96029.0,0.05786065]
[1736874516931,0.416529,96032.0,96029.0,0.05786065]
[1736874517332,0.208268,96030.0,96029.0,0.05386065]
[1736874517569,0.41249492,96030.0,96029.0,0.05586065]
[1736874517797,0.41249492,96030.0,96029.0,0.00379277]
[1736874518767,0.41889492,96030.0,96029.0,0.00379277]
[1736874518938,0.42389492,96030.0,96029.0,0.00179277]
[1736874519095,0.52812184,96030.0,96029.0,0.00379277]
[1736874519295,0.52312184,96030.0,96029.0,0.00379277]
[1736874519498,0.52312184,96030.0,96029.0,0.00179277]
[1736874519818,0.53212184,96030.0,96029.0,0.00279277]
[1736874519996,0.54426051,96030.0,96029.0,0.05386065]
[1736874520400,0.55226051,96030.0,96029.0,0.05486065]
[1736874520605,0.54426051,96030.0,96029.0,0.05386065]
[1736874520847,0.54926051,96030.0,96029.0,0.00179277]
[1736874521257,0.44503359,96030.0,96029.0,0.00179277]
[1736874521905,0.44003359,96030.0,96029.0,0.00179277]
[1736874522090,0.45103359,96030.0,96029.0,0.00279277]
[1736874522456,0.46703359,96030.0,96029.0,0.00179277]
[1736874522569,0.57426051,96030.0,96029.0,0.00279277]
[1736874522975,0.56726051,96030.0,96029.0,0.05386065]
[1736874523182,0.57426051,96030.0,96029.0,0.05486065]
[1736874523410,0.57426051,96030.0,96029.0,0.05386065]
[1736874523723,0.47003359,96030.0,96029.0,0.05486065]
[1736874523920,0.48103359,96030.0,96029.0,0.05486065]
[1736874524516,0.47703359,96030.0,96029.0,0.05486065]
[1736874524715,0.48103359,96030.0,96029.0,0.05486065]
[1736874525330,0.35163359,96030.0,96029.0,0.05486065]
[1736874525531,0.018,96030.0,96029.0,0.05486065]
[1736874526603,0.004,96030.0,96029.0,0.05386065]
[1736874527031,0.004,96030.0,96029.0,0.05486065]
[1736874527032,0.007,96030.0,96029.0,0.05486065]
[1736874527235,0.011,96030.0,96029.0,0.05386065]
[1736874527853,0.007,96030.0,96029.0,0.05386065]
[1736874528056,0.215268,96030.0,96029.0,0.05386065]
[1736874528458,0.215268,96030.0,96029.0,0.05886065]
[1736874528811,0.208268,96030.0,96029.0,0.05486065]
[1736874529978,0.208268,96030.0,96029.0,0.05386065]
[1736874530291,0.208268,96030.0,96029.0,0.05486065]
[1736874530425,0.209268,96030.0,96029.0,0.05486065]
[1736874531038,0.208268,96030.0,96029.0,0.05486065]
[1736874531434,0.209268,96030.0,96029.0,0.05486065]
[1736874532044,0.001,96030.0,96029.0,0.05486065]
[1736874532572,0.001,96030.0,96029.0,0.06539119]
[1736874533257,0.214625,96050.0,96035.0,0.208256]
[1736874533507,0.208225,96050.0,96035.0,0.26032388]
[1736874533842,0.0008534,96057.0,96040.0,0.20645867]
[1736874533996,0.208211,96056.0,96041.0,0.286744]
[1736874534192,0.0008534,96057.0,96041.0,0.33881188]
[1736874534395,0.001,96050.0,96042.0,0.208242]
[1736874534803,0.208211,96056.0,96042.0,0.26030988]
[1736874535027,0.0008534,96057.0,96043.0,0.31246692]
[1736874535207,0.208211,96056.0,96043.0,0.1562948]
[1736874535416,0.208221,96052.0,96043.0,0.05206788]
[1736874536653,0.208221,96052.0,96043.0,0.06277926]
[1736874537017,0.003,96052.0,96043.0,0.06277926]
[1736874537216,0.208222,96051.0,96043.0,0.06277926]
[1736874537418,0.208237,96045.0,96043.0,0.05206788]
[1736874537934,0.20953852,96045.0,96043.0,0.05206788]
[1736874538267,0.208237,96045.0,96043.0,0.05206788]
[1736874538470,0.31376551,96045.0,96043.0,0.05206788]
[1736874538798,0.10552851,96044.0,96043.0,0.04106786]
[1736874539006,0.20422692,96044.0,96043.0,0.04106786]
[1736874539400,0.20422692,96044.0,96043.0,8.6e-07]
[1736874539401,0.39805193,96044.0,96043.0,8.6e-07]
[1736874539641,0.49805193,96044.0,96043.0,8.6e-07]
[1736874540194,0.0064,96044.0,96029.0,0.00179277]
[1736874540333,0.208258,96035.0,96029.0,0.00179277]
[1736874540539,0.208266,96031.0,96029.0,0.00179277]
[1736874540747,0.208259,96034.0,96029.0,0.00179277]
[1736874540945,0.208252,96038.0,96029.0,0.00179277]
[1736874541398,0.208252,96038.0,96029.0,0.05386065]
[1736874541608,0.20826,96034.0,96029.0,0.05386065]
[1736874542043,0.208255,96037.0,96029.0,0.05386065]
[1736874542584,0.208242,96042.0,96029.0,0.05686065]
[1736874542992,0.208242,96042.0,96029.0,0.05486065]
[1736874543195,0.208242,96042.0,96029.0,0.05786065]
[1736874543397,0.04358947,96041.0,96029.0,0.05686065]
[1736874543638,0.208266,96031.0,96029.0,0.05386065]
[1736874543891,0.00130175,96030.0,96029.0,0.05386065]
[1736874544110,0.00130181,96030.0,96029.0,0.05386065]
[1736874544320,0.31249292,96031.0,96029.0,0.05386065]
[1736874544886,0.12658531,96030.0,96029.0,0.05386065]
[1736874545067,0.14977139,96030.0,96029.0,0.05386065]
[1736874545264,0.15486961,96030.0,96029.0,0.05486065]
[1736874545473,0.15486961,96030.0,96029.0,0.05386065]
[1736874545678,0.13168353,96030.0,96029.0,0.05386065]
[1736874546280,0.46483472,96030.0,96029.0,0.05386065]
[1736874546502,0.5665329,96030.0,96029.0,6.5e-07]
[1736874546752,0.5655329,96030.0,96029.0,6.5e-07]
[1736874547251,0.5635329,96030.0,96029.0,6.5e-07]
[1736874547453,0.66775982,96030.0,96029.0,6.5e-07]
[1736874547599,0.57275982,96030.0,96029.0,6.5e-07]
[1736874547814,0.67275982,96030.0,96029.0,6.5e-07]
[1736874548220,0.67675982,96030.0,96029.0,6.5e-07]
[1736874548738,0.208307,96012.0,95997.0,0.208338]
[1736874548939,0.13428353,96030.0,96029.0,0.001]
[1736874549143,0.14068353,96030.0,96029.0,0.001]
[1736874549350,0.14568353,96030.0,96029.0,0.001]
[1736874549888,0.14568353,96030.0,96006.0,0.20832]
[1736874549889,0.208295,96018.0,96006.0,0.20832]
[1736874550074,0.002,96012.0,96002.0,0.20882449]
[1736874550475,0.002,96012.0,96002.0,0.21937629]
[1736874550689,0.002,96012.0,96005.0,0.20832]
[1736874551074,0.002,96012.0,96005.0,0.05206788]
[1736874551272,0.13168353,96030.0,96005.0,0.05206788]
[1736874551273,0.00130191,96017.0,96005.0,0.05206788]
[1736874551452,0.00130204,96025.0,96005.0,0.05206788]
[1736874551651,0.00130192,96029.0,96006.0,0.0819]
[1736874551878,0.208274,96027.0,96006.0,0.13396788]
[1736874552085,0.208293,96019.0,96006.0,0.13396788]
[1736874552258,0.208289,96021.0,96006.0,0.13396788]
[1736874552448,0.208275,96027.0,96009.0,0.20645867]
[1736874552646,0.208283,96023.0,96009.0,0.05206788]
[1736874553810,0.208281,96024.0,96009.0,0.05206788]
[1736874553958,0.003,96025.0,96010.0,0.41476967]
[1736874554162,0.003,96025.0,96010.0,0.36275347]
[1736874554571,0.208267,96031.0,96012.0,0.208307]
[1736874554769,0.208274,96028.0,96013.0,0.10422692]
[1736874555197,0.208274,96028.0,96013.0,0.1562948]
[1736874555678,0.03,96020.0,96013.0,0.1562948]
[1736874555841,0.03,96020.0,96014.0,0.208302]
[1736874556044,0.03,96020.0,96014.0,0.1562948]
[1736874556291,0.03,96020.0,96015.0,0.10422692]
[1736874556510,0.03,96020.0,96018.0,0.208292]
[1736874556715,0.03,96020.0,96019.0,0.10422692]
[1736874557064,0.03,96020.0,96018.0,0.05206788]
[1736874557275,0.03,96020.0,96019.0,0.05206788]
[1736874557768,0.03,96020.0,96018.0,0.002]
[1736874558328,0.03,96020.0,96019.0,0.005]
[1736874558725,0.03,96020.0,96019.0,0.05206788]
[1736874559758,0.03,96020.0,96019.0,0.05306788]
[1736874560319,0.03,96020.0,96019.0,0.05206788]
[1736874560524,0.03,96020.0,96019.0,0.05306788]
[1736874560682,0.03,96020.0,96019.0,0.05806788]
[1736874561106,0.03,96020.0,96019.0,0.05306788]
[1736874561309,0.03,96020.0,96019.0,0.05706788]
[1736874562238,0.03,96020.0,96019.0,0.05306788]
[1736874562442,0.03,96020.0,96019.0,0.05606788]
[1736874563041,0.03,96020.0,96019.0,0.05506788]
[1736874563237,0.03,96020.0,96019.0,0.05606788]
[1736874563709,0.03,96020.0,96019.0,0.05506788]
[1736874563859,0.03,96020.0,96019.0,0.05206788]
[1736874564061,0.03,96020.0,96019.0,0.05706788]
[1736874574130,0.03,96020.0,96019.0,0.05606788]
[1736874574333,0.03,96020.0,96019.0,0.05206788]
[1736874575238,0.031,96020.0,96019.0,0.05206788]
[1736874576063,0.031,96020.0,96019.0,0.16653419]
[1736874576526,0.03,96020.0,96019.0,0.16653419]
[1736874576722,0.03,96020.0,96019.0,0.16753419]
[1736874577391,0.03,96020.0,96019.0,0.16653419]
[1736874577586,0.031,96020.0,96019.0,0.17553419]
[1736874580791,0.031854,96020.0,96019.0,0.17553419]
[1736874581986,0.031854,96020.0,96019.0,0.06106788]
[1736874586842,0.030854,96020.0,96019.0,0.05406788]
[1736874587041,0.030854,96020.0,96019.0,0.05206788]
[1736874587510,0.031854,96020.0,96019.0,0.05206788]
[1736874587689,0.031854,96020.0,96019.0,0.05606788]
[1736874588919,0.030854,96020.0,96019.0,0.05606788]
[1736874589535,0.030854,96020.0,96019.0,0.05706788]
[1736874591867,0.030854,96020.0,96019.0,0.06728819]
[1736874593077,0.030854,96020.0,96019.0,0.05706788]
[1736874595408,0.030854,96020.0,96019.0,0.1612948]
[1736874596382,0.030854,96020.0,96019.0,0.05706788]
[1736874598401,0.030854,96020.0,96019.0,0.1612948]
[1736874600550,0.030854,96020.0,96019.0,0.1572948]
[1736874601008,0.0008535,96044.0,96043.0,0.35824]
[1736874601208,0.0008535,96044.0,96043.0,1.35345292]
[1736874601376,0.0008535,96044.0,96043.0,0.96598876]
[1736874601626,0.0008535,96044.0,96043.0,0.67102438]
[1736874601810,0.0008535,96044.0,96043.0,0.6385348]
[1736874601997,0.0008535,96044.0,96043.0,0.7385348]